Cogmind - Beta 16 --- EXPLORER MODE // 2026.01.21 @ 10:44:29 Player: K.K.Y. Result: Destroyed by RF-0MB(R) with Subdweller Laser Performance ------------- Evolutions (0) 0 Regions Visited (3) 600 Robots Destroyed (32) 160 Value Destroyed (850) 850 Prototype IDs (12) 240 Alien Tech Used (0) 0 Bonus (-106) -106 TOTAL SCORE: 1744 Bonus ------- Friendly Fire -106 Cogmind --------- Core Integrity 0/250 Matter 246/300 Energy 100/100 System Corruption 0% Temperature Cool (6) Movement Treading (160) Location -10/Subcaves Parts ------- > --- POWER (1) -------- (None) > --- PROPULSION (2) --- Spiked Treads Spiked Treads > --- UTILITY (3) ------ Large Storage Unit Structural Scanner > --- WEAPON (2) ------- High-powered Shotgun Barrage Gun > --- INVENTORY (15) --- Light Nuclear Core Meta Core High-capacity Storage Unit Sensor Array Faulty Experimental Sensor Array Improved Terrain Scanner Makeshift Light Armor Plating Makeshift Light Armor Plating Riot Gun Pulse Rifle Improved Datajack Mining Laser Peak State ------------ > --- POWER ------------ (None) > --- PROPULSION ------- Spiked Treads Spiked Treads > --- UTILITY ---------- Large Storage Unit Structural Scanner Sensor Array > --- WEAPON ----------- Beam Cannon Barrage Gun > --- INVENTORY -------- Light Nuclear Core Meta Core High-capacity Storage Unit Sensor Array Experimental Sensor Array Improved Terrain Scanner Makeshift Light Armor Plating Makeshift Light Armor Plating Riot Gun Pulse Rifle High-powered Shotgun Improved Datajack Mining Laser [Rating: 16] Favorites ----------- Power Ion Engine Engine Ion Engine Propulsion Light Treads Treads Light Treads Utility Structural Scanner Device Structural Scanner Storage Large Storage Unit Protection Light Armor Plating Weapon Beam Cannon Energy Gun EM Pulse Gun Energy Cannon Beam Cannon Ballistic Gun Barrage Gun Special Weapon Mining Laser Build | -11 -10 -10 -10 ------- Run | Yrd Mat Min Sub Slots Evolved 1 | . 1 . . Power . | . . . . Propulsion . | . . . . Utility 1 | . 1 . . Weapon . | . . . . Parts Attached 18 | 7 5 1 5 Power 1 | 1 . . . Engine 1 | 1 . . . Core . | . . . . Reactor . | . . . . Propulsion 4 | 2 . . 2 Treads 4 | 2 . . 2 Leg . | . . . . Wheel . | . . . . Hover . | . . . . Flight . | . . . . Utility 4 | 2 1 1 . Device 2 | 2 . . . Storage 1 | . . 1 . Processor . | . . . . Hackware . | . . . . Protection 1 | . 1 . . Artifact . | . . . . Weapon 9 | 2 4 . 3 Energy Gun 4 | 2 2 . . Energy Cannon 2 | . 2 . . Ballistic Gun 2 | . . . 2 Ballistic Cannon . | . . . . Launcher . | . . . . Special Weapon 1 | . . . 1 Impact Weapon . | . . . . Slashing Weapon . | . . . . Piercing Weapon . | . . . . Special Melee Weapon . | . . . . Unidentified Prototypes . | . . . . Parts Lost 7 | . 1 . 6 Power 1 | . . . 1 Propulsion 2 | . . . 2 Utility 1 | . . . 1 Weapon 3 | . 1 . 2 Highest Loss Streak 2 | . 1 . 2 To Critical Strikes . | . . . . Average Backups 8 | 1 4 5 12 Power . | . . . 1 Propulsion . | . . . . Utility 4 | . 3 4 5 Weapon 2 | . 1 1 4 Tool/Special . | . . . . Unused Backups 14 | . 1 . 13 Power 1 | . . . 1 Propulsion . | . . . . Utility 9 | . 1 . 8 Weapon 2 | . . . 2 Tool/Special 2 | . . . 2 Average Slot Usage (%) 93 | . 90 100 92 Engine 11 | . 12 12 11 Treads 21 | . 25 25 18 Device 24 | . 25 25 24 Storage 8 | . . 10 12 Protection 2 | . 9 1 . Energy Gun 3 | . 14 . . Energy Cannon 17 | . 3 25 20 Special Weapon 1 | . . . 3 Peak Build Rating 16 | 7 8 10 16 Average Rating 10 | 5 7 9 11 On Entrance 6 | . 7 8 10 Avg Prop Armor Cover (%) . | . . . . Naked Turns . | . . . . Heaviest Build 33 | 11 16 33 33 Greatest Support 40 | 40 40 40 40 Greatest Overweight (x) 10 | . . . 10 Average Overweight (x) . | . . . . Largest Inventory Capacity 15 | 5 5 15 15 Average Capacity 12 | 5 5 14 15 Most Carried 15 | 4 5 10 15 Average Carried 8 | 1 4 6 12 Final Capacity 15 | 5 5 15 15 Final Carried 12 | 4 5 10 12 Class Distribution -------------------- 100% | Hacker-Mutant Dominant Class ---------------- Hacker-Mutant | -10/Materials Hacker-Mutant | -10/Mines Hacker-Mutant | -10/Subcaves Resources | -11 -10 -10 -10 ----------- Run | Yrd Mat Min Sub Matter Collected 415 | 270 20 40 85 Remotely . | . . . . Salvage Created 1273 | 139 402 171 561 Parts 60 | 9 13 7 31 Haulers Intercepted 2 | . 2 . . Recyclers Shooed 1 | . 1 . . Parts Field Recycled . | . . . . Retrieved Matter . | . . . . Parts Self-Destructed . | . . . . Prevented . | . . . . Parts Restored . | . . . . Kills | -11 -10 -10 -10 ------- Run | Yrd Mat Min Sub Combat Hostiles Destroyed 23 | . 5 5 13 Guns 2 | . 2 . . Cannons 16 | . . 4 12 AOE 2 | . 2 . . Classes Destroyed 9 | 2 5 . 2 Worker 1 | . 1 . . Tunneler 2 | 2 . . . Hauler 2 | . 2 . . Recycler 1 | 1 . . . Watcher 3 | . 3 . . Swarmer 5 | . 1 2 2 Grunt 7 | . 4 3 . Artisan 2 | . . . 2 Subdweller 11 | . . . 11 Best Kill Streak 3 | 2 3 2 2 Combat Bots Only 2 | . 2 2 2 Max Kills in Single Turn 2 | 1 2 1 1 Gunslinging . | . . . . Exploded 1 | . 1 . . Melee . | . . . . Uniques/NPCs Destroyed . | . . . . Combat | -11 -10 -10 -10 -------- Run | Yrd Mat Min Sub Hostile Shots Fired 124 | . 41 19 64 Missed 24 | . 9 5 10 Hits 100 | . 32 14 54 Projectile 100 | . 32 14 54 AOE 3 | . . . 3 Critical Strikes 3 | . 1 . 2 Damage Taken 1178 | . 276 98 804 Core 250 | . 40 20 190 Absorbed by Shields . | . . . . Ignored by Resistances 711 | . 175 63 473 Core Remaining (%) 100 | 100 . . . Volleys Fired 110 | 3 33 13 61 Largest 2 | 2 2 2 2 Hottest 160 | 80 90 120 160 Shots Fired 193 | 6 52 26 109 Gun 69 | 6 52 . 11 Cannon 109 | . . 26 83 Launcher . | . . . . Special 15 | . . . 15 Kinetic 11 | . . . 11 Thermal 141 | . 17 26 98 Explosive . | . . . . Electromagnetic 41 | 6 35 . . Robot Hit Streak 33 | 5 28 33 28 Robot Miss Streak 1 | 1 1 1 1 Penetration Max . | . . . . Secondary Targets . | . . . . Shots Hit Robots 141 | 5 49 21 66 Core Hits 51 | 3 19 5 24 Critical Kills 2 | . . 1 1 Critical Parts Destroyed . | . . . . Critical Strikes 4 | . 2 1 1 Burn 2 | . 2 . . Meltdown 2 | . . 1 1 Melee Attacks . | . . . . Impact . | . . . . Slashing . | . . . . Piercing . | . . . . Sneak Attacks . | . . . . Combat Hostiles . | . . . . Follow-up Attacks . | . . . . Damage Inflicted 2346 | 103 759 368 1116 Guns 794 | 69 628 . 97 Cannons 1363 | . . 368 995 Explosions 165 | 34 131 . . Melee . | . . . . Ramming . | . . . . Kinetic 97 | . . . 97 Thermal 1739 | 34 318 368 1019 Explosive . | . . . . Electromagnetic 510 | 69 441 . . Impact . | . . . . Slashing . | . . . . Piercing . | . . . . Highest Corruption . | . . . . Average Corruption . | . . . . Corruption Purged . | . . . . Corruption Blocked . | . . . . Overload Shots . | . . . . Overflow Damage 38 | . 25 . 13 Projectiles 13 | . . . 13 Explosions 25 | . 25 . . Melee . | . . . . Knockbacks . | . . . . Impact . | . . . . Kinetic . | . . . . Secondary . | . . . . Self-Inflicted Damage 25 | . 25 . . Shots 2 | . 2 . . Rammed . | . . . . Targets Rammed . | . . . . Kicked . | . . . . Crushed . | . . . . Highest Temperature 377 | 36 377 345 208 Average Temperature 109 | 18 111 160 25 Received Heat Transfer 730 | . 237 81 412 Effects 3 | . 1 2 . Energy Bleed 2 | . . 2 . Short Circuit 1 | . 1 . . Siege Activations . | . . . . Martial Activations . | . . . . Shielding Activations . | . . . . Robots Disrupted . | . . . . Combat Hostiles . | . . . . Robots Corrupted 1 | . 1 . . Combat Hostiles 1 | . 1 . . Parts Fried . | . . . . Impact Corruptions . | . . . . Robots Melted 2 | . . 1 1 Combat Hostiles 2 | . . 1 1 Parts Melted 12 | . . 5 7 Heat Transferred 3789 | . 853 777 2159 Parts Sabotaged . | . . . . Parts Stolen . | . . . . Parts Stripped . | . . . . Power Chain Reactions 4 | 1 3 . . Alert | -11 -10 -10 -10 ------- Run | Yrd Mat Min Sub Maximum Alert Level . | . . . . Low Security (%) 100 | 100 100 100 . Level 1 . | . . . . Level 2 . | . . . . Level 3 . | . . . . Level 4 . | . . . . Level 5 . | . . . . High Security . | . . . . Max Security . | . . . . Peak Influence 56 | 10 56 39 . Initial . | . . . . Average 3 | 1 5 2 . Influence Increases 394 | 15 195 134 50 Destroy 0b10 Robot/C 240 | . 100 100 40 Destroy 0b10 Robot/NC 45 | 15 30 . . Destroy Leader 80 | . 40 30 10 Successful Hack 2 | . 2 . . Disable Machine 4 | . . 4 . Destroy Structure 8 | . 8 . . Lose Combat Pursuer 15 | . 15 . . Influence Decreases 394 | 15 195 134 50 Time Decay 394 | 15 195 134 50 Squads Dispatched 1 | . . 1 . Investigation 1 | . . 1 . Extermination . | . . . . Reinforcement . | . . . . Assault . | . . . . Garrison . | . . . . Intercept . | . . . . Searches Triggered . | . . . . Construction Impeded . | . . . . Haulers Reinforced . | . . . . Active Scanning Responses . | . . . . Cargo Convoy Interrupts . | . . . . Stealth | -11 -10 -10 -10 --------- Run | Yrd Mat Min Sub Distress Signals . | . . . . Communications Jammed . | . . . . Distress Signals . | . . . . Times Spotted 34 | . 11 7 16 Peak Tracking Total 3 | . 2 3 2 Tactical Retreats 1 | . 1 . . Traps | -11 -10 -10 -10 ------- Run | Yrd Mat Min Sub Traps Triggered . | . . . . Indirectly . | . . . . Trap Hack Attempts . | . . . . Triggered . | . . . . Disarmed . | . . . . Reprogrammed . | . . . . Reused . | . . . . Traps Extracted . | . . . . Installed . | . . . . Triggered . | . . . . Machines | -11 -10 -10 -10 ---------- Run | Yrd Mat Min Sub Machines Disabled 2 | . . 1 1 Max in Single Turn 1 | . . 1 1 Machines Repaired . | . . . . Machines Dismantled . | . . . . Machines Sabotaged . | . . . . Overloaded Fab Kills . | . . . . Hacking | -11 -10 -10 -10 --------- Run | Yrd Mat Min Sub Machines Accessed 12 | . 8 1 3 Terminals 6 | . 6 . . Fabricators . | . . . . Repair Stations . | . . . . Recycling Units 2 | . 2 . . Scanalyzers . | . . . . Garrison Access . | . . . . Total Hacks 16 | . 11 1 4 Successful 14 | . 9 1 4 Failed 2 | . 2 . . Catastrophic . | . . . . Database Lockouts . | . . . . Manual 8 | . 8 . . Terminals 6 | . 6 . . Fabricators . | . . . . Repair Stations . | . . . . Recycling Units 5 | . 5 . . Scanalyzers . | . . . . Garrison Access . | . . . . Terminal Hacks 5 | . . 1 4 Record 1 | . . . 1 Open Door 2 | . . 1 1 Proto ID Catalog 1 | . . . 1 Release Object 1 | . . . 1 Fabricator Hacks . | . . . . Repair Station Hacks . | . . . . Recycling Unit Hacks 2 | . 2 . . Retrieve Components 2 | . 2 . . Scanalyzer . | . . . . Garrison Access Hacks . | . . . . Unauthorized Hacks 7 | . 7 . . Terminals 6 | . 6 . . Botnet 6 | . 6 . . Fabricators . | . . . . Repair Stations . | . . . . Recycling Units 1 | . 1 . . Reject 1 | . 1 . . Scanalyzers . | . . . . Garrison Access . | . . . . Data Cores Recovered . | . . . . Used . | . . . . Hacking Detections 3 | . 3 . . Full Trace Events . | . . . . Feedback Events . | . . . . Feedback Blocked . | . . . . Robot Schematics Acquired . | . . . . Robots Built . | . . . . Authchips . | . . . . Time . | . . . . Total Robot Build Rating . | . . . . Part Schematics Acquired . | . . . . Parts Built . | . . . . Authchips . | . . . . Time . | . . . . Total Part Build Rating . | . . . . Part Studies Acquired . | . . . . Parts Repaired . | . . . . Time . | . . . . Parts Recycled . | . . . . Recycled Matter . | . . . . Retrieved Matter . | . . . . Retrieved Components 4 | . 4 . . Parts Scanalyzed . | . . . . Part Schematics Acquired . | . . . . Parts Damaged . | . . . . Bothacking | -11 -10 -10 -10 ------------ Run | Yrd Mat Min Sub Used RIF Installer . | . . . . Robots Hacked . | . . . . Non-combat . | . . . . Combat . | . . . . Robot Hacks Applied . | . . . . Relay Couplers Released . | . . . . Fabnet Peak Effective % . | . . . . Robots Rewired . | . . . . Allies Hacked . | . . . . Hacks Repelled . | . . . . Allies | -11 -10 -10 -10 -------- Run | Yrd Mat Min Sub Total Allies . | . . . . Largest Group . | . . . . Highest-Rated Group . | . . . . Highest-Rated Ally . | . . . . Total Orders . | . . . . Ally Attacks . | . . . . Total Damage . | . . . . Kills . | . . . . Allies Corrupted . | . . . . Allies Melted . | . . . . Intel | -11 -10 -10 -10 ------- Run | Yrd Mat Min Sub Active Infowar (turns) 5116 | 131 1153 1225 2607 Sensors 5098 | 130 1153 1225 2590 Structural 5116 | 131 1153 1225 2607 Robot Analysis Total . | . . . . Derelict Logs Recovered 2 | . . 1 1 Drone Launches . | . . . . Drone Recoveries . | . . . . Exploration | -11 -10 -10 -10 ------------- Run | Yrd Mat Min Sub Turns Passed 5124 | 139 1153 1225 2607 Spaces Moved 2641 | 79 634 715 1213 Core 16 | 12 . . 4 Treads 2625 | 67 634 715 1209 Legs . | . . . . Wheels . | . . . . Hover . | . . . . Flight . | . . . . Fastest Speed 50 | 50 160 160 160 Average Speed 175 | 143 160 160 194 Slowest Speed 550 | 160 160 160 550 Overloaded Moves . | . . . . Propulsion Burnouts . | . . . . Robots Hopped . | . . . . Potential Cave-ins . | . . . . Cave-ins Triggered . | . . . . Exploration Rate (%) 68 | 4 97 99 74 Regions Visited 3 Branch Regions 2 Pre-discovered Areas . | . . . . Known Exits Taken 3 | 1 1 1 . Unknown Exits Taken . | . . . . Scrap Searched 3 | . . . 3 Spaces Dug . | . . . . Terrain Destroyed 8 | . 8 . . Melee . | . . . . Projectile . | . . . . AOE 8 | . 8 . . Terrain Rammed . | . . . . Walls Destroyed . | . . . . Machines Disabled . | . . . . Actions | -11 -10 -10 -10 --------- Run | Yrd Mat Min Sub Total 2916 | 99 723 770 1324 Wait 106 | . 43 35 28 Move 2638 | 78 633 714 1213 Hop . | . . . . Pick Up 29 | 11 4 6 8 Fast Attach 2 | . 2 . . Attach 13 | 7 2 . 4 Detach 2 | . 2 . . Swap 10 | . 1 1 8 Drop 6 | . 3 1 2 Fire 110 | 3 33 13 61 Melee . | . . . . Ram . | . . . . Kick . | . . . . Crush . | . . . . Escape Stasis . | . . . . Rewire . | . . . . Trap . | . . . . Miscellaneous . | . . . . Route ------- -11/Scrapyard -10/Materials (discovered 4 exits: *Mat x3 / *Min) -10/Mines (discovered 4 exits: *Mat x2 / Exi / *Sub) -10/Subcaves (discovered 3 exits: *Mat x2 / Rec) History --------- Turn | Location | Event 32 | -11/Scrapyard | Identified exit to Materials 32 | -11/Scrapyard | Discovered exit to Materials (range 15) 140 | -11/Scrapyard | Entered Materials 140 | -10/Materials | Evolved 1 slot: Utility x1 312 | -10/Materials | Build established: Hacker-Mutant 435 | -10/Materials | Identified exit to Materials 435 | -10/Materials | Discovered exit to Materials (range 5) 659 | -10/Materials | Discovered exit to Materials (range 10) 809 | -10/Materials | Identified exit to Mines 809 | -10/Materials | Discovered exit to Mines (range 16) 1037 | -10/Materials | Discovered exit to Materials (range 15) 1293 | -10/Materials | Entered Mines 1301 | -10/Mines | Discovered exit to Materials (range 8) 1314 | -10/Mines | Met a Derelict shopkeep closing up shop 1401 | -10/Mines | Found a damaged Exp. Sensor Array with a note attached 1406 | -10/Mines | Found Prototype Device 1586 | -10/Mines | Deemed a non-threat by the Exiles lab entrance 1586 | -10/Mines | Identified exit to Exiles 1586 | -10/Mines | Discovered exit to Exiles (range 6) 1777 | -10/Mines | Identified exit to Subcaves 1777 | -10/Mines | Discovered exit to Subcaves (range 8) 1916 | -10/Mines | Discovered exit to Materials (range 10) 2518 | -10/Mines | Entered Subcaves 2519 | -10/Subcaves | Approached by a straggling Scientist 2560 | -10/Subcaves | Shifting Twisted Machinery released Battle Cannon 2575 | -10/Subcaves | Identified exit to Materials 2575 | -10/Subcaves | Discovered exit to Materials (range 6) 2900 | -10/Subcaves | Discovered exit to Materials (range 5) 3016 | -10/Subcaves | Shifting Twisted Machinery released Riot Gun 3030 | -10/Subcaves | Shifting Twisted Machinery released Barrage Gun 3248 | -10/Subcaves | Visited 4L-MR0's lab 3274 | -10/Subcaves | Found Meta Core 3678 | -10/Subcaves | Ambushed by angry Subdweller bent on revenge 3994 | -10/Subcaves | Disturbed a concealed Subdweller 4072 | -10/Subcaves | Shifting Twisted Machinery released Sub. Laser 4078 | -10/Subcaves | Shifting Twisted Machinery released Battle Rifle 4134 | -10/Subcaves | Identified exit to Recycling 4262 | -10/Subcaves | Core integrity fell below 50% 5109 | -10/Subcaves | Core integrity fell below 20% 5125 | -10/Subcaves | Destroyed by RF-0MB(R) with Subdweller Laser Last Messages --------------- 04288_ Acquired 10 matter. 04607_ Subatomizers dissect the Sub. Monowheel. 04807_ 3B-HPH(R) destroyed. 04814_ R8-F8E(R) affixes Scrap Shield Fragment to Scrap Shield. 04819_ Disposable Heat Sink melted. 04819_ R8-F8E(R) destroyed. 04904_ Beam Cannon destroyed. 04914_ Disposable Heat Sink melted. 04914_ HQ-44R(R) destroyed. 04916_ Ion Engine destroyed. 04920_ LX-PG1(R) destroyed. 04922_ Acquired 10 matter. 04930_ Acquired Spk. Treads. 04933_ Acquired 10 matter. 04993_ Subatomizers dissect the Sub. Power Source. 05108_ Sensor Array destroyed. 05110_ Beam Cannon destroyed. Map ----- +----------------------------------------------------+ | ## ###""" "" " #### ???????????????????? | | """""" ## """ ###??????????????????????? | | """" ## ## # ## ####??????????????????????? | | "" ##### #### #### ###???????????????????????? | | ### ######### ### ##????????????????????????? | | ## ##### ###????????????????????????????? | | # #### ###????????????????????????????? | | # #### ####??????????????????????????? | | ### ####??????????????????????????? | | ## ##??????????????????????????? | | # ### ## ####????????????????????????? | | # ### ##### ??????????????????????? | | ###### ### ?????????????????????? | | ###### ######??????????????????? | | ## ### #########??????????????? | | ## ## #######?????????????? | | ## ## ####????????????? | | ## #### ###????????????? | | ### #### ###???????????? | | ### ??#### ###??????????? | | ### #### ???#### ####### ##??????????? | | ######## ####### #########?? ##??????????? | | ######? ####### ######?????###??????????? | | ###????? #### ####?????????????????? | | #######???? #### """"" #####???????????????? | | ######???## ??## ""@ "#### ###???????????? | | ?????????## ## ""##""##???????????? | | ????????### ######### "" "##???????????? | | ????????## ########### ##? #???????? | | ????????#### ?????????#### ##???????? | | ????????#######??????????###"RR ##???????? | | ??????????#####???????????### ###???????? | | ??????????????????????????###" ####???????? | | ?????????????????????????????" ###????????? | | ?????????????????????????????"" ###????????? | | ?????????????????????????????"## ##????????? | | ?????????????????????????????"## ##????????? | | ?????????????????????????????????" ##????????? | | ???????????????????????????????????" ###?????????? | | ????????????????????????????????????####?????????? | | ?????????????????????????????????????????????????? | | ?????????????????????????????????????????????????? | | ?????????????????????????????????????????????????? | | ?????????????????????????????????????????????????? | | ?????????????????????????????????????????????????? | | ?????????????????????????????????????????????????? | | ?????????????????????????????????????????????????? | | ?????????????????????????????????????????????????? | | ?????????????????????????????????????????????????? | | ?????????????????????????????????????????????????? | +----------------------------------------------------+ Best States ------------- Heat Dissipation 25 Energy Generation 10 Energy Capacity 250 Matter Stores 300 Matter Capacity 300 Sight Range 16 Robot Scan Range 14 Terrain Scan Density 10 Armor Coverage 150 Resistance: KI 35 Resistance: TH 35 Resistance: EX 35 Resistance: EM 35 Resistance: I 35 Resistance: S 35 Resistance: P 35 Evasion (%) 40 Recoil Reduction 2 Offensive Hacking 20 Item Schematics ----------------- None Robot Schematics ------------------ None Fabricated ------------ Nothing Repaired ---------- Nothing Studied --------- None Alien Tech Used ----------------- None Achievements -------------- None Challenges ------------ None Game ------ Seed CoolingDispersalDriver Manual? 0 Play Time 00:17:25 Cumulative 298.1 hours Start 2026.01.21 @ 10:28:59 End 2026.01.21 @ 10:44:29 Sessions 1 Manual Loads 0 Difficulty Explorer Special Mode None Game No. 461 Rogue 0 Adventurer 0 Explorer 461 Win Type - Total 0 Types 0/0/0/0/0/0/0/0/0/0 Lore% 76 Gallery% 70 Achievement% 55 Wizard Run 0 Options --------- Layout 1 ASCII 0 Keyboard 0 Movement Mouse Keybinds 1 Fullscreen 1 Font 24/Smallcaps Map View 50x35 Zoom Use 0% Tactical HUD 1 Map Filters NONE Filters NONE Steam 1 RUN: 780a25f1-db50-49af-bf78-dac6db365025